bitfinex/quotes_SOLUSD_20250410
["timestamp","ask_amount","ask_price","bid_price","bid_amount"]
[1744306626022,34.64863823,109.63,109.61,0.063]
[1744306626220,34.93296137,109.64,109.61,0.063]
[1744306626522,18.933972,109.65,109.61,0.063]
[1744306626722,34.64863823,109.63,109.61,0.063]
[1744306626921,43.77043823,109.63,109.61,0.063]
[1744306627127,34.64863823,109.63,109.61,0.063]
[1744306627730,43.77043823,109.63,109.61,0.063]
[1744306628027,9.1211,109.64,109.61,0.063]
[1744306628211,34.64863823,109.63,109.61,0.063]
[1744306628719,34.64863823,109.64,109.61,0.063]
[1744306629323,36.16743823,109.67,109.62,34.64863823]
[1744306629514,34.64863823,109.67,109.63,34.64863823]
[1744306629821,41.09963823,109.68,109.64,34.64863823]
[1744306630022,34.64863823,109.7,109.66,34.64863823]
[1744306630327,34.64863823,109.69,109.65,34.64863823]
[1744306630526,15.3451,109.71,109.65,34.64863823]
[1744306630728,40.87843823,109.71,109.66,34.64863823]
[1744306630897,0.03,109.72,109.68,43.76533823]
[1744306631498,34.64863823,109.71,109.66,34.64863823]
[1744306631717,34.64863823,109.69,109.64,9.1204]
[1744306632032,34.64863823,109.69,109.65,34.64863823]
[1744306632703,34.64863823,109.68,109.64,34.64863823]
[1744306632908,34.64863823,109.69,109.65,9.1199]
[1744306633113,9.1165,109.7,109.66,34.64863823]
[1744306633433,26.0,109.7,109.66,34.64863823]
[1744306633726,34.64863823,109.69,109.65,34.64863823]
[1744306634030,34.64863823,109.67,109.63,34.64863823]
[1744306634205,31.9297,109.72,109.65,34.64863823]
[1744306634409,34.64863823,109.7,109.66,34.64863823]
[1744306634908,9.1157,109.7,109.66,43.76743823]
[1744306636023,43.9059998,109.71,109.67,34.64863823]
[1744306636330,0.03,109.72,109.68,34.64863823]
[1744306636527,0.03,109.72,109.69,34.64863823]
[1744306636704,9.1442,109.72,109.68,34.64863823]
[1744306637002,0.03,109.72,109.68,34.64863823]
[1744306637200,0.03,109.72,109.68,43.76533823]
[1744306637408,34.64863823,109.71,109.67,9.1178]
[1744306637606,34.64863823,109.7,109.64,48.8011]
[1744306637819,0.31432314,109.72,109.66,34.64863823]
[1744306638031,0.31432314,109.72,109.65,32.06186157]
[1744306638032,0.03,109.72,109.69,34.64863823]
[1744306638228,0.03,109.72,109.7,34.64863823]
[1744306638429,0.03,109.72,109.71,34.64863823]
[1744306638606,0.03,109.72,109.7,34.64863823]
[1744306639234,0.03,109.72,109.68,22.7931]
[1744306639443,0.03,109.72,109.68,43.76603823]
[1744306639734,34.67863823,109.72,109.67,15.7504]
[1744306639919,0.03,109.72,109.7,34.64863823]
[1744306640421,0.03,109.72,109.69,34.64863823]
[1744306640621,0.03,109.72,109.7,34.64863823]
[1744306641240,0.03,109.72,109.7,43.76393823]
[1744306641628,0.03,109.72,109.7,9.1153]
[1744306641831,0.03,109.72,109.71,34.64863823]
[1744306642423,0.03,109.72,109.7,43.76393823]
[1744306645030,0.03,109.72,109.71,34.64863823]
[1744306645431,0.03,109.72,109.71,30.70942283]
[1744306645728,0.03,109.72,109.71,49.50123326]
[1744306646721,0.03,109.72,109.71,62.36123326]
[1744306646915,0.0001,109.72,109.71,62.6455564]
[1744306647118,0.03,109.73,109.72,25.23311043]
[1744306647346,0.03,109.73,109.72,68.87876104]
[1744306647849,0.03,109.73,109.72,69.16308418]
[1744306648034,0.0001,109.73,109.72,70.68688418]
[1744306649937,0.03,109.75,109.72,128.00363479]
[1744306650137,0.03,109.75,109.74,88.13923479]
[1744306650723,0.03,109.78,109.75,0.28432314]
[1744306651051,0.03,109.78,109.77,34.53155061]
[1744306651543,0.0001,109.78,109.77,62.71758418]
[1744306651749,0.03,109.84,109.79,18.79181043]
[1744306652063,0.03,109.84,109.82,34.53155061]
[1744306652247,0.03,109.84,109.81,34.53155061]
[1744306652552,0.03,109.84,109.82,34.53155061]
[1744306653224,0.03,109.84,109.83,34.53155061]
[1744306653620,0.03,109.84,109.83,43.63645061]
[1744306654949,0.03,109.84,109.83,62.42826104]
[1744306655526,0.03,109.84,109.83,43.63645061]
[1744306656226,0.03,109.84,109.83,62.42826104]
[1744306656649,0.03,109.84,109.83,43.63645061]
[1744306657849,0.03,109.84,109.81,9.1063]
[1744306658029,0.03,109.84,109.83,34.53155061]
[1744306658647,0.03,109.84,109.82,34.53155061]
[1744306658847,0.03,109.84,109.83,34.53155061]
[1744306659162,0.5,110.0,109.88,1.6354]
[1744306659365,31.8066,110.04,109.99,42.30335061]
[1744306659652,9.58614646,110.05,110.0,34.53155061]
[1744306659829,0.49914646,110.05,109.99,26.0]
[1744306660027,44.11789707,110.05,109.95,0.5]
[1744306660330,34.53155061,110.04,109.99,34.53155061]
[1744306660853,9.58614646,110.05,109.98,0.14216157]
[1744306661148,44.11769707,110.05,109.94,312.36]
[1744306661352,34.53155061,110.0,109.94,321.4556]
[1744306661650,26.0,110.02,109.95,0.14216157]
[1744306661862,26.0,110.02,109.96,34.53155061]
[1744306661863,34.53155061,110.01,109.96,34.53155061]
[1744306662156,60.53155061,110.01,109.94,9.0956]
[1744306662354,35.0901,110.01,109.95,43.62635061]
[1744306662549,0.49914646,110.05,109.95,111.83915061]
[1744306662730,34.53155061,110.04,109.95,66.36395061]
[1744306662932,0.49914646,110.05,109.96,18.79181043]
[1744306663132,0.49914646,110.05,110.01,34.53155061]
[1744306663350,9.58584646,110.05,110.01,34.53155061]
[1744306663653,34.53155061,110.04,109.95,66.36395061]
[1744306663855,34.53155061,110.03,109.98,34.53155061]
[1744306664036,60.53155061,110.02,109.95,66.50611218]
[1744306664365,60.53155061,110.02,109.88,9.1008]
[1744306664366,34.53155061,109.96,109.88,9.1008]
[1744306664588,26.0,109.98,109.91,18.79181043]
[1744306664737,9.09,110.01,109.95,34.53155061]
[1744306665059,34.53155061,110.0,109.95,34.53155061]
[1744306665634,34.53155061,109.99,109.91,0.14216157]
[1744306665865,60.53155061,109.98,109.93,34.53155061]
[1744306666032,34.53155061,109.97,109.92,34.53155061]
[1744306666237,34.53155061,109.96,109.92,34.53155061]
[1744306666440,9.0925,109.98,109.93,34.53155061]
[1744306666639,43.62405061,109.98,109.93,34.53155061]
[1744306666838,34.53155061,109.97,109.92,43.62875061]
[1744306667351,34.53155061,109.97,109.93,34.53155061]
[1744306667543,34.53155061,109.96,109.91,9.0983]
[1744306667751,34.53155061,109.97,109.93,34.53155061]
[1744306667944,9.0925,109.98,109.92,34.53155061]
[1744306668151,34.53155061,109.93,109.87,9.1016]
[1744306668558,43.62835061,109.93,109.88,34.53155061]
[1744306668758,43.62835061,109.93,109.86,9.1024]
[1744306668942,34.53155061,109.92,109.87,34.53155061]
[1744306669142,9.0968,109.93,109.88,34.53155061]
[1744306669338,34.53155061,109.92,109.86,9.1024]
[1744306669539,0.14216157,109.92,109.87,34.53155061]
[1744306669744,34.53155061,109.9,109.84,9.1041]
[1744306669947,12.8,109.92,109.85,34.53155061]
[1744306670149,12.8,109.92,109.86,34.53155061]
[1744306670351,34.53155061,109.91,109.87,34.53155061]
[1744306670660,34.53155061,109.9,109.83,0.14216157]
[1744306670869,9.0986,109.91,109.86,34.53155061]
[1744306671056,9.0986,109.91,109.87,34.53155061]
[1744306671258,9.0986,109.91,109.85,34.53155061]
[1744306671448,9.0986,109.91,109.87,34.53155061]
[1744306671849,43.63015061,109.91,109.87,34.53155061]
[1744306672057,9.0986,109.91,109.87,34.53155061]
[1744306672266,34.53155061,109.9,109.84,9.1039]
[1744306672470,34.53155061,109.88,109.83,0.14216157]
[1744306672646,34.53155061,109.88,109.84,34.53155061]
[1744306672846,34.53155061,109.89,109.84,34.53155061]
[1744306673071,34.53155061,109.87,109.83,34.53155061]
[1744306673566,34.81587375,109.9,109.82,9.1054]
[1744306673567,34.53155061,109.88,109.84,34.53155061]
[1744306673773,60.53155061,109.87,109.82,9.1054]
[1744306673965,69.63395061,109.87,109.82,43.63695061]
[1744306674357,34.53155061,109.86,109.82,34.53155061]
[1744306674957,34.53155061,109.85,109.8,9.1072]
[1744306675271,34.53155061,109.85,109.81,34.53155061]
[1744306675471,34.53155061,109.86,109.81,34.53155061]
[1744306675854,57.8565,109.87,109.82,34.53155061]
[1744306676051,35.1024,109.87,109.83,34.53155061]
[1744306676257,69.63395061,109.87,109.83,34.53155061]
[1744306676858,35.1024,109.87,109.83,34.53155061]
[1744306677160,69.63395061,109.87,109.83,34.53155061]
[1744306677866,34.53155061,109.86,109.82,34.53155061]
[1744306678065,34.53155061,109.85,109.81,34.53155061]
[1744306678984,34.53155061,109.83,109.79,0.063]
[1744306679180,43.63735061,109.82,109.79,0.063]
[1744306679352,34.53155061,109.81,109.79,0.063]
[1744306680068,9.1058,109.82,109.79,0.063]
[1744306680069,34.53155061,109.8,109.79,0.063]
[1744306681079,43.63825061,109.81,109.79,0.063]
[1744306681271,9.1041,109.84,109.8,34.53155061]
[1744306681482,43.63565061,109.84,109.8,34.53155061]
[1744306682095,9.1041,109.84,109.8,34.53155061]
[1744306682263,43.63565061,109.84,109.8,34.53155061]
[1744306682762,9.1041,109.84,109.8,34.53155061]
[1744306682957,21.9036,109.85,109.82,34.53155061]
[1744306683484,56.43515061,109.85,109.81,34.53155061]
[1744306683663,21.9036,109.85,109.81,34.53155061]
[1744306683855,56.43515061,109.85,109.8,9.1072]
[1744306684264,56.43515061,109.85,109.81,34.53155061]
[1744306684785,56.43515061,109.85,109.8,43.63875061]
[1744306684971,56.43515061,109.85,109.81,34.53155061]
[1744306685284,21.9036,109.85,109.81,34.53155061]
[1744306685972,21.9036,109.85,109.79,0.063]
[1744306685973,12.8,109.85,109.82,34.53155061]
[1744306686178,9.101,109.88,109.84,34.53155061]
[1744306686371,9.101,109.88,109.85,34.53155061]
[1744306686567,56.45165061,109.89,109.85,34.53155061]
[1744306686780,34.53155061,109.88,109.8,34.67371218]
[1744306687099,43.63255061,109.88,109.84,34.53155061]
[1744306687268,43.63255061,109.88,109.84,43.63545061]
[1744306687669,9.101,109.88,109.85,34.53155061]
[1744306688075,9.101,109.88,109.84,43.63545061]
[1744306688277,43.63255061,109.88,109.83,43.63605061]
[1744306689295,21.9204,109.89,109.84,34.53155061]
[1744306689467,56.45195061,109.89,109.84,34.53155061]
[1744306689889,34.53155061,109.88,109.84,34.53155061]
[1744306690270,43.63245061,109.88,109.84,43.63535061]
[1744306690473,43.63245061,109.88,109.83,34.53155061]
[1744306690664,9.1009,109.88,109.84,34.53155061]
[1744306690865,12.82,109.89,109.86,34.53155061]
[1744306691065,28.8892,109.91,109.87,34.53155061]
[1744306691066,43.63035061,109.91,109.87,34.53155061]
[1744306691289,9.0988,109.91,109.87,34.53155061]
[1744306691499,9.0988,109.91,109.85,34.53155061]
[1744306691701,9.0988,109.91,109.88,34.53155061]
[1744306691870,9.0988,109.91,109.87,34.53155061]
[1744306692270,9.0988,109.91,109.87,43.63305061]
[1744306692568,6.4373,109.94,109.89,34.53155061]
[1744306692779,6.4373,109.94,109.88,34.53155061]
[1744306692780,34.53155061,109.93,109.88,34.53155061]
[1744306693074,15.5335,109.94,109.89,34.53155061]
[1744306693768,50.06505061,109.94,109.89,34.53155061]
[1744306693969,34.53155061,109.93,109.87,9.1015]
[1744306694187,34.53155061,109.93,109.89,34.53155061]
[1744306694392,9.0975,109.92,109.88,34.53155061]
[1744306694696,34.53155061,109.91,109.86,34.53155061]
[1744306694902,9.0975,109.92,109.87,34.53155061]
[1744306695083,9.0975,109.92,109.88,34.53155061]
[1744306695397,43.62905061,109.92,109.88,34.53155061]
[1744306695572,34.53155061,109.91,109.87,34.53155061]
[1744306695781,9.0975,109.92,109.87,34.53155061]
[1744306695983,34.53155061,109.91,109.87,34.53155061]
[1744306696173,34.53155061,109.9,109.86,34.53155061]
[1744306696373,43.62995061,109.91,109.87,43.63315061]
[1744306696580,9.0979,109.92,109.88,34.53155061]
[1744306696765,43.62945061,109.92,109.88,34.53155061]
[1744306696970,9.0966,109.93,109.89,34.53155061]
[1744306697271,34.53155061,109.91,109.87,34.53155061]
[1744306697479,31.8383,109.93,109.85,43.63455061]
[1744306697794,34.53155061,109.89,109.85,43.63455061]
[1744306697998,34.53155061,109.89,109.85,9.103]
[1744306698294,34.53155061,109.9,109.84,34.53155061]
[1744306698485,9.0991,109.9,109.85,34.53155061]
[1744306698684,34.53155061,109.89,109.85,34.53155061]
[1744306698893,34.53155061,109.88,109.83,9.1046]
[1744306699081,34.53155061,109.89,109.84,34.53155061]
[1744306699400,42.43001879,109.9,109.86,34.53155061]
[1744306699694,34.53155061,109.89,109.85,34.53155061]
[1744306700095,42.43001879,109.9,109.85,34.53155061]
[1744306700486,34.53155061,109.89,109.85,43.63455061]
[1744306700692,43.63105061,109.9,109.85,43.63455061]
[1744306700907,43.63105061,109.9,109.86,34.53155061]
[1744306701194,9.0995,109.9,109.85,43.63455061]
[1744306701494,43.63105061,109.9,109.85,43.63455061]
[1744306701695,43.63105061,109.9,109.86,34.53155061]
[1744306701901,43.63105061,109.9,109.86,43.63365061]
[1744306702087,9.0989,109.91,109.86,43.63365061]
[1744306702292,312.39,109.96,109.9,34.53155061]
[1744306702293,9.095,109.95,109.9,34.53155061]
[1744306702471,43.62655061,109.95,109.9,34.53155061]
[1744306702795,43.62655061,109.95,109.91,34.53155061]
[1744306703491,34.53155061,109.94,109.87,0.14216157]
[1744306703667,34.53155061,109.92,109.86,39.802]
[1744306703876,34.53155061,109.92,109.88,34.53155061]
[1744306704064,43.62905061,109.92,109.88,43.63205061]
[1744306704267,34.53155061,109.91,109.86,34.53155061]
[1744306704581,34.53155061,109.91,109.86,9.1024]
[1744306704768,34.53155061,109.91,109.86,43.63395061]
[1744306704968,34.53155061,109.91,109.86,9.1024]
[1744306705165,34.53155061,109.9,109.86,34.53155061]
[1744306705379,31.8413,109.92,109.87,34.53155061]
[1744306705380,34.53155061,109.91,109.87,34.53155061]
[1744306705577,34.53155061,109.91,109.86,34.53155061]
[1744306705981,43.63075061,109.9,109.86,43.63355061]
[1744306706169,43.63075061,109.9,109.86,9.102]
[1744306706370,9.0992,109.9,109.86,9.102]
[1744306706567,9.0992,109.9,109.84,22.7603]
[1744306706568,34.53155061,109.88,109.83,9.1049]
[1744306706797,34.53155061,109.89,109.85,34.53155061]
[1744306706998,34.53155061,109.89,109.83,31.8673]
[1744306706999,9.0992,109.9,109.86,34.53155061]
[1744306707293,34.53155061,109.89,109.85,34.53155061]
[1744306707791,9.0992,109.9,109.85,34.53155061]
[1744306707998,34.53155061,109.88,109.84,34.53155061]
[1744306708179,9.1002,109.89,109.83,34.53155061]
[1744306708380,34.53155061,109.85,109.81,34.53155061]
[1744306708578,34.53155061,109.85,109.79,43.70235061]
[1744306708796,34.53155061,109.81,109.79,0.063]
[1744306709204,69.06310122,109.8,109.79,0.063]
[1744306709579,87.99707322,109.8,109.79,0.0001]
[1744306709901,97.10447322,109.8,109.79,0.0001]
[1744306710100,34.53155061,109.77,109.76,0.063]
[1744306710280,60.53155061,109.77,109.76,0.063]
[1744306710598,0.14216157,109.76,109.73,14.17194056]
[1744306710803,34.53155061,109.74,109.73,14.17194056]
[1744306711000,34.53155061,109.74,109.73,0.063]
[1744306711375,53.46552261,109.74,109.7,0.063]
[1744306711577,34.53155061,109.71,109.7,0.063]
[1744306712770,78.17800122,109.71,109.7,0.063]
[1744306713296,69.06310122,109.71,109.7,0.063]
[1744306713500,69.06310122,109.71,109.68,0.063]
[1744306713686,44.6796,109.72,109.68,0.063]
[1744306714002,34.53155061,109.69,109.68,0.063]
[1744306714379,43.64815061,109.69,109.68,0.063]
[1744306714582,18.67340215,109.69,109.68,0.063]
[1744306714798,53.20495276,109.69,109.68,0.063]
[1744306714999,62.32155276,109.69,109.64,34.53155061]
[1744306715212,53.20495276,109.69,109.64,34.53155061]
[1744306715501,23.20362379,109.7,109.65,34.53155061]
[1744306716001,14.08762379,109.7,109.66,43.65035061]
[1744306716200,14.08762379,109.7,109.67,34.53155061]
[1744306716501,34.53155061,109.71,109.67,34.53155061]
[1744306716697,70.5135744,109.72,109.67,34.53155061]
[1744306716994,34.53155061,109.71,109.67,34.53155061]
[1744306717196,34.53155061,109.7,109.64,9.1199]
[1744306717383,34.53155061,109.71,109.66,34.53155061]
[1744306717583,26.86762379,109.72,109.69,34.53155061]
[1744306717808,14.08762379,109.72,109.66,19.07613357]
[1744306717981,14.08762379,109.72,109.69,43.64805061]
[1744306718302,57.7315744,109.74,109.7,34.53155061]
[1744306718490,14.08762379,109.74,109.7,34.53155061]
[1744306718890,14.08762379,109.74,109.69,9.1165]
[1744306718891,14.08762379,109.74,109.71,34.53155061]
[1744306719093,48.6191744,109.74,109.7,34.53155061]
[1744306719293,48.6191744,109.74,109.71,34.53155061]
[1744306719294,14.08762379,109.74,109.71,34.53155061]
[1744306719618,56.44265061,109.76,109.72,34.53155061]
[1744306719799,12.8,109.76,109.73,34.53155061]
[1744306720004,34.53155061,109.75,109.69,9.1165]
[1744306720307,12.8,109.76,109.72,34.53155061]
[1744306720599,12.8,109.76,109.73,34.53155061]
[1744306720808,57.6588955,109.77,109.73,34.53155061]
[1744306720987,57.6588955,109.77,109.74,34.53155061]
[1744306721185,57.6588955,109.77,109.76,34.53155061]
[1744306721393,34.53155061,109.8,109.72,19.07613357]
[1744306721597,15.5039,109.82,109.77,34.53155061]
[1744306721793,50.03545061,109.82,109.77,34.53155061]
[1744306721987,50.03545061,109.82,109.78,34.53155061]
[1744306722195,34.53155061,109.81,109.75,22.7783]
[1744306722413,9.1061,109.82,109.75,34.53155061]
[1744306722708,34.53155061,109.79,109.75,34.53155061]
[1744306722892,34.53155061,109.8,109.75,34.53155061]
[1744306723288,9.1061,109.82,109.75,34.53155061]
[1744306723499,34.53155061,109.8,109.75,43.64305061]
[1744306723701,60.53155061,109.79,109.75,34.53155061]
[1744306723890,34.53155061,109.77,109.71,9.1149]
[1744306724201,26.0,109.79,109.74,34.53155061]
[1744306724383,31.8706,109.82,109.76,34.53155061]
[1744306724578,34.53155061,109.8,109.75,34.53155061]
[1744306724782,31.8706,109.82,109.75,34.53155061]
[1744306724995,43.63765061,109.82,109.78,34.53155061]
[1744306725194,9.1041,109.84,109.8,34.53155061]
[1744306725385,34.53155061,109.81,109.71,90.2768]
[1744306725598,18.933972,109.83,109.75,34.53155061]
[1744306725913,34.53155061,109.81,109.77,34.53155061]
[1744306726280,34.53155061,109.82,109.77,34.53155061]
[1744306726683,34.53155061,109.81,109.77,43.64095061]
[1744306726993,53.49552261,109.85,109.78,34.53155061]
[1744306726994,53.21119947,109.85,109.78,34.53155061]
[1744306727194,34.53155061,109.83,109.78,34.53155061]
[1744306727395,34.53155061,109.82,109.77,9.1094]
[1744306727590,34.53155061,109.82,109.78,34.53155061]
[1744306728310,34.53155061,109.81,109.77,34.53155061]
[1744306728915,43.63835061,109.81,109.76,48.10150277]
[1744306729111,34.53155061,109.79,109.74,9.1124]
[1744306729297,34.53155061,109.79,109.75,34.53155061]
[1744306730515,9.1068,109.81,109.74,9.1124]
[1744306730700,34.53155061,109.79,109.75,34.53155061]
[1744306730902,34.53155061,109.79,109.73,22.7824]
[1744306731108,43.63995061,109.79,109.74,34.53155061]
[1744306731412,34.53155061,109.78,109.74,34.53155061]
[1744306731801,43.63995061,109.79,109.74,34.53155061]
[1744306732311,43.63995061,109.79,109.73,4.44578357]
[1744306732513,34.53155061,109.78,109.72,31.8993]
[1744306732706,9.1084,109.79,109.75,34.53155061]
[1744306732888,9.1078,109.8,109.75,43.64285061]
[1744306733092,43.63935061,109.8,109.75,43.64285061]
[1744306733311,34.53155061,109.79,109.75,43.64285061]
[1744306734114,9.107,109.81,109.76,34.53155061]
[1744306734317,43.63775061,109.82,109.78,34.53155061]
[1744306734642,43.63565061,109.84,109.8,34.53155061]
[1744306734806,34.53155061,109.83,109.76,19.07613357]
[1744306735112,43.63565061,109.84,109.79,34.53155061]
[1744306735308,9.1041,109.84,109.8,34.53155061]
[1744306735521,43.63565061,109.84,109.8,34.53155061]
[1744306735698,43.63565061,109.84,109.79,34.53155061]
[1744306735907,9.1337,109.85,109.8,34.53155061]
[1744306736107,43.66525061,109.85,109.8,43.63885061]
[1744306736310,34.53155061,109.84,109.79,43.63935061]
[1744306736699,9.1337,109.85,109.81,34.53155061]
[1744306736899,43.66525061,109.85,109.81,34.53155061]
[1744306737319,43.66525061,109.85,109.8,34.53155061]
[1744306737918,43.66525061,109.85,109.8,43.63885061]
[1744306738525,34.53155061,109.84,109.79,9.1079]
[1744306738724,34.53155061,109.84,109.79,43.63945061]
[1744306739221,34.53155061,109.82,109.75,20.5561]
[1744306739423,26.0,109.82,109.75,43.64285061]
[1744306739732,26.0,109.82,109.74,43.64355061]
[1744306739733,34.53155061,109.79,109.74,43.64355061]
[1744306739906,43.64125061,109.78,109.73,43.64445061]
[1744306740239,34.53155061,109.76,109.71,1.5133]
[1744306740529,34.53155061,109.74,109.7,34.53155061]
[1744306740701,34.53155061,109.73,109.69,34.53155061]
[1744306740908,34.53155061,109.73,109.69,43.64805061]
[1744306741098,34.53155061,109.74,109.69,48.19333417]
[1744306741301,31.8825,109.78,109.72,34.53155061]
[1744306741526,34.53155061,109.77,109.7,34.53155061]
[1744306741731,34.53155061,109.76,109.72,34.53155061]
[1744306742022,34.53155061,109.76,109.69,55.52941713]
[1744306742023,9.1116,109.75,109.71,43.64635061]
[1744306742406,34.53155061,109.76,109.72,34.53155061]
[1744306742407,9.1112,109.76,109.72,34.53155061]
[1744306742629,34.53155061,109.78,109.73,34.53155061]
[1744306742921,57.30085061,109.8,109.76,34.53155061]
[1744306742922,9.1078,109.8,109.76,34.53155061]
[1744306743227,31.8655,109.84,109.79,34.53155061]
[1744306743522,43.63565061,109.84,109.8,34.53155061]
[1744306744829,9.1041,109.84,109.8,43.63885061]
[1744306745022,34.53155061,109.82,109.77,19.07613357]
[1744306745224,34.53155061,109.82,109.78,34.53155061]
[1744306745426,51.77510295,109.8,109.74,9.1124]
[1744306745735,51.77510295,109.8,109.76,51.77510295]
[1744306745933,51.77510295,109.8,109.75,51.77510295]
[1744306746103,51.77510295,109.78,109.74,51.77510295]
[1744306746504,51.77510295,109.76,109.72,9.1136]
[1744306746935,51.77510295,109.76,109.71,60.89000295]
[1744306747233,51.77510295,109.75,109.71,51.77510295]
[1744306747404,77.4203,109.79,109.71,51.77510295]
[1744306747405,51.77510295,109.76,109.71,51.77510295]
[1744306747613,51.77510295,109.75,109.71,51.77510295]
[1744306748109,9.1121,109.75,109.71,60.88990295]
[1744306748300,60.88720295,109.75,109.71,60.88990295]
[1744306749218,60.88630295,109.76,109.72,51.77510295]
[1744306749425,95.19830295,109.8,109.73,51.77510295]
[1744306749641,51.77510295,109.78,109.71,0.14216157]
[1744306749814,51.77510295,109.77,109.71,0.42648471]
[1744306750029,51.77510295,109.77,109.71,19.07613357]
[1744306750218,51.77510295,109.78,109.73,51.77510295]
[1744306750426,31.8789,109.79,109.71,19.07613357]
[1744306750630,51.77510295,109.77,109.73,51.77510295]
[1744306750813,51.77510295,109.75,109.7,9.1157]
[1744306751019,51.77510295,109.77,109.72,51.77510295]
[1744306751229,60.88580295,109.76,109.72,51.77510295]
[1744306751536,51.77510295,109.73,109.69,60.89120295]
[1744306751741,51.77510295,109.73,109.69,9.1166]
[1744306751916,51.77510295,109.75,109.7,51.77510295]
[1744306752340,51.77510295,109.74,109.7,51.77510295]
[1744306752619,31.8876,109.76,109.7,51.77510295]
[1744306752914,51.77510295,109.75,109.7,51.77510295]
[1744306753445,60.88740295,109.75,109.68,31.9739]
[1744306753643,60.88740295,109.75,109.71,51.77510295]
[1744306753822,60.88740295,109.75,109.7,51.77510295]
[1744306754139,51.77510295,109.72,109.68,51.83810295]
[1744306754435,51.77510295,109.72,109.68,0.063]
[1744306754626,51.77510295,109.71,109.68,0.063]
[1744306754811,96.42640295,109.75,109.68,0.063]
[1744306755011,51.77510295,109.71,109.68,0.063]
[1744306755523,60.89070295,109.71,109.68,0.063]
[1744306755711,51.77510295,109.7,109.68,0.063]
[1744306756427,9.1156,109.71,109.68,0.063]
[1744306756818,60.89070295,109.71,109.68,0.063]
[1744306757157,60.88950295,109.72,109.68,0.063]
[1744306757838,9.1129,109.74,109.69,51.77510295]
[1744306758047,51.77510295,109.73,109.69,51.77510295]
[1744306758546,9.1129,109.74,109.68,51.83810295]
[1744306758547,51.77510295,109.72,109.68,51.83810295]
[1744306758842,51.77510295,109.73,109.69,51.77510295]
[1744306759141,60.88800295,109.74,109.69,51.77510295]
[1744306759647,60.88800295,109.74,109.7,51.77510295]
[1744306760147,60.88800295,109.74,109.69,60.89160295]
[1744306760340,60.88800295,109.74,109.7,51.77510295]
[1744306760517,21.8719,109.75,109.69,31.908]
[1744306760721,73.64700295,109.75,109.7,51.77510295]
[1744306761442,51.77510295,109.74,109.69,51.77510295]
[1744306761623,51.77510295,109.74,109.68,10.76]
[1744306761827,51.77510295,109.73,109.69,51.77510295]
[1744306762043,60.88910295,109.73,109.69,51.77510295]
[1744306762243,60.88910295,109.73,109.68,62.53510295]
[1744306762545,9.114,109.73,109.69,51.77510295]
[1744306763058,51.77510295,109.7,109.68,0.063]
[1744306763743,31.8971,109.73,109.68,0.063]
[1744306764120,51.77510295,109.71,109.68,0.063]
[1744306764426,51.77510295,109.7,109.68,0.063]
[1744306764853,51.77510295,109.69,109.68,0.063]
[1744306765722,96.68912314,109.73,109.68,0.063]
[1744306766041,60.89170295,109.69,109.68,0.063]
[1744306767248,61.03386452,109.69,109.68,0.0001]
[1744306767426,61.03386452,109.69,109.62,0.063]
[1744306767427,26.0,109.66,109.62,0.063]
[1744306767752,34.62429416,109.64,109.62,0.063]
[1744306767927,34.62429416,109.63,109.62,0.063]
[1744306768917,53.70042773,109.63,109.62,0.063]
[1744306769343,53.70042773,109.63,109.62,0.0001]
[1744306770044,62.82192773,109.63,109.62,0.0001]
[1744306770423,34.62429416,109.58,109.56,0.063]
[1744306771526,78.00681599,109.6,109.56,0.063]
[1744306771839,26.0,109.6,109.56,0.063]
[1744306772043,9.1249,109.59,109.56,0.063]
[1744306772349,78.00681599,109.59,109.56,0.063]
[1744306773032,9.1244,109.6,109.56,0.063]
[1744306773342,26.0,109.6,109.57,52.00681599]
[1744306774048,61.13041599,109.61,109.57,52.00681599]
[1744306774239,9.1236,109.61,109.57,52.00681599]
[1744306774440,9.1236,109.61,109.58,52.00681599]
[1744306774639,61.13041599,109.61,109.56,9.1899]
[1744306774839,52.00681599,109.61,109.57,52.00681599]
[1744306775155,61.12961599,109.62,109.58,52.00681599]
[1744306775532,52.00681599,109.63,109.58,52.00681599]
[1744306775861,52.00681599,109.63,109.57,19.07613357]
[1744306776042,61.12871599,109.63,109.58,61.13181599]
[1744306777535,61.12941599,109.62,109.58,9.125]
[1744306777845,52.00681599,109.62,109.58,61.13181599]
[1744306778160,9.1207,109.64,109.6,52.00681599]
[1744306778358,61.12751599,109.64,109.6,52.00681599]
[1744306778554,61.12751599,109.64,109.58,9.125]